fUSD/lending_fUSD_20240820
["ID","MTS","AMOUNT","RATE_DAILY","PERIOD"]
[335358994,1724158247487,-267.226796,0.00010999,2]
[335358996,1724158247495,-493.59808335,0.00010999,2]
[335358998,1724158247505,-151.0,0.00010999,2]
[335359000,1724158247514,-151.0,0.00010999,2]
[335359002,1724158247523,-151.0,0.00010999,2]
[335359004,1724158247532,-151.0,0.00010999,2]
[335359006,1724158247541,-39371.0,0.00011,2]
[335359008,1724158247551,-19866.57674195,0.00011,2]
[335359010,1724158247564,-174057.3795909,0.00011,2]
[335359013,1724158247576,-41614.63363156,0.00011,2]
[335359015,1724158247587,-23712.81795013,0.00011,2]
[335359913,1724158713527,343.02,8.243e-05,2]
[335359914,1724158975404,153.52,8.005e-05,2]
[335359915,1724159234001,169.21,0.000178,120]
[335359916,1724159235363,500.0,7.265e-05,2]
[335359917,1724159235746,500.0,8.473e-05,2]
[335359945,1724159431663,-338.85,9.936e-05,2]
[335359946,1724159431673,-107.60853724,9.975e-05,2]
[335359947,1724159431720,-460.07,9.975e-05,2]
[335359948,1724159431731,-76.40146276,9.975e-05,2]
[335359949,1724159431740,-200.0,9.995e-05,2]
[335359950,1724159431749,-224.22,9.997e-05,2]
[335359951,1724159431759,-569.387752,9.999e-05,2]
[335359952,1724159431768,-24.88106033,0.00010104,2]
[335359953,1724159431888,-175.11893967,0.00010104,2]
[335359954,1724159431898,-242.69659338,0.00010105,2]
[335360118,1724159437616,-557.30340662,0.00010105,2]
[335360119,1724159437626,-500.0,0.000104,3]
[335360120,1724159437635,-1000.0,0.000105,3]
[335360121,1724159437646,-20.57180191,0.0001058,2]
[335360122,1724159437657,-182.24819809,0.0001058,2]
[335360123,1724159437667,-179.99,0.0001058,2]
[335360124,1724159437680,-197.15266185,0.000106,3]
[335360125,1724159437696,-683.52597038,0.000106,3]
[335360126,1724159437729,-619.32136777,0.000106,3]
[335360127,1724159437738,-2000.0,0.000107,3]
[335360128,1724159437748,-167.0,0.00010799,2]
[335360129,1724159437758,-499.99,0.000108,2]
[335360130,1724159437768,-224.24,0.000108,2]
[335360131,1724159437777,-2084.22424244,0.000108,3]
[335360132,1724159437789,-415.77575756,0.000108,3]
[335360133,1724159437799,-298.77636906,0.00010888,2]
[335360134,1724159437809,-155.0,0.0001089,2]
[335360135,1724159437819,-330.4044326,0.0001089,2]
[335360136,1724159437829,-4195.37107495,0.000109,2]
[335360137,1724159437841,-263.39792505,0.000109,2]
[335360138,1724159437852,-847.74605802,0.000109,2]
[335360139,1724159437867,-3216.27504198,0.000109,2]
[335360140,1724159437876,-529.965,0.000109,2]
[335360141,1724159437885,-2918.3701,0.000109,2]
[335360142,1724159437894,-164.7430691,0.000109,2]
[335360144,1724159437904,-500.0,0.000109,3]
[335360146,1724159437914,-4592.07525797,0.000109,2]
[335360148,1724159437926,-6021.98142467,0.000109,2]
[335360150,1724159437935,-444.27116689,0.000109,2]
[335360152,1724159437945,-1351.21765755,0.000109,2]
[335360154,1724159437955,-229.55880013,0.000109,2]
[335360155,1724159437964,-179.65493734,0.000109,2]
[335360157,1724159437974,-305.24,0.00010959,2]
[335360160,1724159437984,-250.0,0.00010959,2]
[335360161,1724159437993,-299.999999,0.0001097,2]
[335360163,1724159438003,-1000.0,0.00010999,2]
[335360165,1724159438013,-1000.0,0.00010999,2]
[335360167,1724159438022,-1000.0,0.00010999,2]
[335360169,1724159438032,-1847.8181564,0.00010999,2]
[335360172,1724159438048,-25508.73562843,0.00010999,2]
[335360174,1724159438058,-500.0,0.00010999,2]
[335360176,1724159438067,-500.0,0.00010999,2]
[335360178,1724159438076,-500.0,0.00010999,2]
[335360180,1724159438085,-342.32913847,0.00010999,2]
[335360181,1724159438095,-563.86396876,0.00010999,2]
[335360183,1724159438104,-500.0,0.00010999,2]
[335360185,1724159438114,-500.0,0.00010999,2]
[335360188,1724159438124,-251.70964886,0.00010999,2]
[335360190,1724159438136,-248.29035114,0.00010999,2]
[335360192,1724159438146,-500.0,0.00010999,2]
[335360194,1724159438156,-500.0,0.00010999,2]
[335360196,1724159438166,-500.0,0.00010999,2]
[335360198,1724159438175,-125.47728778,0.00010999,2]
[335360329,1724159439693,-374.52271222,0.00010999,2]
[335360331,1724159439702,-500.0,0.00010999,2]
[335360333,1724159439712,-30.21746169,0.00010999,2]
[335360348,1724159439859,-469.78253831,0.00010999,2]
[335360350,1724159439869,-500.0,0.00010999,2]
[335360352,1724159439878,-500.0,0.00010999,2]
[335360354,1724159439887,-500.0,0.00010999,2]
[335360356,1724159439897,-167.68763746,0.00010999,2]
[335360358,1724159439906,-499.6214981,0.00010999,2]
[335360360,1724159439915,-181.34368451,0.00010999,2]
[335360361,1724159439925,-500.0,0.00010999,2]
[335360363,1724159439934,-500.0,0.00010999,2]
[335360365,1724159439944,-500.0,0.00010999,2]
[335360367,1724159439952,-230.08229973,0.00010999,2]
[335360369,1724159439961,-229.94322476,0.00011,2]
[335360371,1724159439972,-4503.13,0.00011,2]
[335360373,1724159439988,-593.06753094,0.00011,2]
[335360376,1724159439999,-708.8182443,0.00011,2]
[335360377,1724159440008,-547.0,0.00011,2]
[335360379,1724159440018,-44.86569759,0.00011,2]
[335360381,1724159440029,-544.91778687,0.00011,2]
[335360388,1724159440084,-121946.68075451,0.00011,2]
[335360390,1724159440095,-425.0,0.00011,2]
[335360641,1724159442825,-53499.51239554,0.00011,2]
[335360643,1724159442835,-2416540.73448592,0.00011,2]
[335360645,1724159442845,-250.0,0.00011,2]
[335360647,1724159442855,-2575733.87021901,0.00011,2]
[335360695,1724159443314,-1288.06569799,0.00011,2]
[335360923,1724159445651,-1076.16746915,0.00011,2]
[335360958,1724159445818,-3430.70457734,0.00011,2]
[335361245,1724159524249,247.67718828,9.361e-05,2]
[335361246,1724159559716,500.0,9.361e-05,2]
[335361247,1724159560431,500.0,9.361e-05,2]
[335361248,1724159560646,500.0,9.361e-05,2]
[335361249,1724159561827,500.0,9.361e-05,2]
[335361250,1724159635733,334.23,8.745e-05,2]
[335361251,1724160003387,153.52,8.181e-05,2]
[335361252,1724160034029,155.0,9.899e-05,2]
[335361264,1724160101294,298.77636906,9.899e-05,2]
[335361265,1724160101501,317.51,8.327e-05,2]
[335361272,1724160167044,155.0,9.899e-05,2]
[335361273,1724160178041,155.0,9.899e-05,2]
[335361283,1724160337504,561.88444547,9.5e-05,2]
[335361285,1724160417744,6750.49190895,9.899e-05,2]
[335361295,1724160631682,-298.77636906,9.91e-05,2]
[335361296,1724160631691,-501.46,0.00010081,2]
[335361297,1724160631700,-99.76363094,0.00010134,2]
[335361299,1724160631711,-673.33636906,0.00010134,2]
[335361301,1724160631721,-1350.20522667,0.00010192,2]
[335361303,1724160631730,-162.26,0.00010233,2]
[335361304,1724160631740,-160.0,0.00010336,2]
[335361305,1724160631749,-2643.0,0.00010341,2]
[335361306,1724160631758,-317.51,0.00010591,2]
[335361307,1724160631768,-840.0,0.0001074,2]
[335361308,1724160631777,-300.0,0.00010879,2]
[335361309,1724160631786,-300.0,0.00010879,2]
[335361310,1724160631794,-7081.50066435,0.0001088,2]
[335361311,1724160631809,-955.37507359,0.0001088,2]
[335361312,1724160631819,-139166.995213,0.0001088,2]
[335361313,1724160631829,-330.4044326,0.00010888,2]
[335361314,1724160631838,-365.68617671,0.00010888,2]
[335361315,1724160631848,-419.31016917,0.00010888,2]
[335361316,1724160631857,-164.74306907,0.000109,2]
[335361317,1724160631867,-388.73727102,0.000109,2]
[335361318,1724160631877,-250.0,0.00010959,2]
[335361319,1724160631887,-151.94,0.00010959,2]
[335361320,1724160631896,-155.0,0.00010979,2]
[335361321,1724160631905,-201.71555854,0.00010989,2]
[335361322,1724160631915,-1000.0,0.00010999,2]
[335361323,1724160631925,-150.01,0.00010999,2]
[335361324,1724160631935,-358.582551,0.00010999,2]
[335361325,1724160631945,-1000.0,0.00010999,2]
[335361326,1724160631955,-1000.0,0.00010999,2]
[335361327,1724160631964,-8413.0,0.00010999,2]
[335361328,1724160631973,-523.08333089,0.00010999,2]
[335361329,1724160631984,-192.23136664,0.00010999,2]
[335361330,1724160631994,-148528.56086136,0.00011,2]
[335361331,1724160632006,-481.470523,0.00011,2]
[335361332,1724160632017,-766.71121484,0.00011,2]
[335361333,1724160632030,-1437.62195802,0.00011,2]
[335361371,1724160637852,-239.055034,0.00010999,2]
[335361372,1724160637861,-1434.78815512,0.00011,2]
[335361373,1724160637873,-544.38170658,0.00011,2]
[335361374,1724160637965,-2383.05429346,0.00011,2]
[335361568,1724160640120,-155.30433965,0.00010999,2]
[335361570,1724160640130,-550.76949816,0.00011,2]
[335361858,1724160642851,-216.23077973,0.00010818,2]
[335361860,1724160642860,-196.88565557,0.00011,2]
[335361910,1724160643343,-400.30481951,0.00011,2]
[335361912,1724160643354,-500.0,0.00011,2]
[335362200,1724160646053,-239.05503401,0.00010999,2]
[335362202,1724160646063,-260.94496599,0.00011,2]
[335362207,1724160646081,-350.2806763,0.00011,2]
[335362930,1724160653533,302.77,9.09e-05,2]
[335363629,1724160661962,500.0,9.361e-05,2]
[335363919,1724161034885,500.0,8.57e-05,2]
[335363920,1724161125543,303.51,8.219e-05,2]
[335363922,1724161572737,288.33,8.219e-05,2]
[335363923,1724161575136,673.34,9.9e-05,2]
[335363935,1724161784526,162.26,9.764e-05,2]
[335363965,1724161831876,-264.66383924,9.91e-05,2]
[335363966,1724161831886,-297.68850569,9.929e-05,2]
[335363967,1724161831895,-250.73,9.929e-05,2]
[335363968,1724161831904,-237.74,9.933e-05,2]
[335363969,1724161831914,-160.0,9.996e-05,2]
[335363970,1724161831923,-7016.03616595,9.999e-05,2]
[335363971,1724161831932,-419.38668131,9.999e-05,2]
[335363972,1724161831942,-330.4044326,9.999e-05,2]
[335363973,1724161831951,-711.82892756,0.00010009,2]
[335363974,1724161831961,-300.0,0.00010025,2]
[335363975,1724161831970,-210.68796629,0.00010026,2]
[335363976,1724161831980,-155.34295398,0.00010026,2]
[335363977,1724161831989,-298.77636906,0.00010026,2]
[335363978,1724161831998,-155.0,0.00010026,2]
[335363979,1724161832008,-298.77636906,0.00010026,2]
[335363980,1724161832017,-4048.42,0.00010059,2]
[335363981,1724161832026,-179.51849561,0.00010097,2]
[335363982,1724161832035,-162.26,0.00010196,2]
[335363983,1724161832045,-159.12,0.00010236,2]
[335363984,1724161832054,-288.33,0.00010471,2]
[335363985,1724161832063,-835.5,0.00010641,2]
[335363986,1724161832072,-1350.20522667,0.00010681,2]
[335363987,1724161832081,-400.0,0.000107,3]
[335363988,1724161832090,-150.0,0.00010712,2]
[335363989,1724161832099,-587.42,0.00010713,2]
[335363990,1724161832109,-16486.56,0.00010713,2]
[335363991,1724161832118,-356.76,0.00010778,2]
[335363992,1724161832127,-21121.5805,0.0001079,2]
[335363993,1724161832137,-2139.003,0.0001079,2]
[335363994,1724161832146,-468.1942,0.0001079,2]
[335363995,1724161832155,-461.1654,0.0001079,2]
[335363997,1724161832164,-290.3767219,0.000108,2]
[335363999,1724161832173,-800.0,0.000108,3]
[335364001,1724161832182,-179.99,0.00010875,2]
[335364002,1724161832192,-167983.46774572,0.0001089,2]
[335364003,1724161832201,-499.99,0.0001089,2]
[335364004,1724161832210,-763.236,0.0001089,2]
[335364005,1724161832219,-479.81726,0.0001089,2]
[335364006,1724161832228,-10559.83110037,0.00010899,2]
[335364007,1724161832237,-1451.1123,0.000109,2]
[335364008,1724161832246,-164.74306907,0.000109,2]
[335364009,1724161832255,-152.80631539,0.000109,2]
[335364010,1724161832264,-1200.0,0.000109,3]
[335364011,1724161832273,-3851.54235622,0.000109,2]
[335364012,1724161832282,-304.56425799,0.000109,2]
[335364013,1724161832291,-243.13,0.00010901,2]
[335364014,1724161832300,-506.7298,0.00010945,2]
[335364015,1724161832309,-289.97,0.00010959,2]
[335364016,1724161832318,-250.0,0.00010959,2]
[335364017,1724161832327,-10559.83110028,0.00010969,2]
[335364018,1724161832336,-500.0,0.00010993,2]
[335364019,1724161832346,-500.0,0.00010993,2]
[335364020,1724161832354,-162.12610338,0.00010993,2]
[335364021,1724161832364,-546.7512804,0.00010993,2]
[335364022,1724161832373,-14059.7918618,0.00010994,2]
[335364023,1724161832382,-4300.2213812,0.00010994,2]
[335364024,1724161832390,-239.055034,0.00010999,2]
[335364025,1724161832399,-1000.0,0.00010999,2]
[335364026,1724161832409,-1000.0,0.00010999,2]
[335364028,1724161832422,-1194.04088155,0.00010999,3]
[335364030,1724161832431,-500.0,0.00010999,2]
[335364032,1724161832440,-500.0,0.00010999,2]
[335364033,1724161832448,-500.0,0.00010999,2]
[335364034,1724161832459,-500.0,0.00010999,2]
[335364035,1724161832468,-500.0,0.00010999,2]
[335364036,1724161832477,-500.0,0.00010999,2]
[335364037,1724161832488,-500.0,0.00010999,2]
[335364038,1724161832498,-500.0,0.00010999,2]
[335364039,1724161832507,-500.0,0.00010999,2]
[335364040,1724161832516,-500.0,0.00010999,2]
[335364041,1724161832525,-500.0,0.00010999,2]
[335364042,1724161832534,-500.0,0.00010999,2]
[335364043,1724161832543,-500.0,0.00010999,2]
[335364044,1724161832552,-500.0,0.00010999,2]
[335364045,1724161832561,-337.67248444,0.00010999,2]
[335364046,1724161832570,-213.59040738,0.00010999,2]
[335364047,1724161832579,-66536.80735484,0.00011,2]
[335364048,1724161832744,-626.83064209,0.00011,2]
[335364049,1724161832755,-4322.75271909,0.00011,2]
[335364050,1724161832767,-1800.0,0.00011,2]
[335364060,1724161837952,-20600.35648722,0.00011,2]
[335364061,1724161838010,-1994.76740069,0.00011,2]
[335364062,1724161838069,-1070.82849079,0.00011,2]
[335364063,1724161838081,-777.16020434,0.00011,2]
[335364064,1724161838092,-4119.06863074,0.00011,2]
[335364065,1724161838128,-1466.43431141,0.00011,2]
[335364075,1724161838321,-1014.6173005,0.00011,2]
[335364078,1724161838339,-1544.59791416,0.00011,2]
[335364080,1724161838351,-1080.68345125,0.00011,2]
[335364242,1724161840115,-1765.19999999,0.00011,2]
[335364244,1724161840126,-389.59385261,0.00011,2]
[335364247,1724161840138,-2015.94855758,0.00011,2]
[335364257,1724161840226,-273.765,0.00011,2]
[335364263,1724161840284,-261.00209112,0.00011,2]
[335364266,1724161840296,-300.0,0.00011,2]
[335364276,1724161840400,-5674.29993077,0.00011,2]
[335364282,1724161840459,-426.16365909,0.00011,2]
[335364285,1724161840473,-532.75583938,0.00011,2]
[335364287,1724161840485,-4375.70535098,0.00011,2]
[335364289,1724161840497,-6257.15365588,0.00011,2]
[335364291,1724161840508,-3670.0,0.00011,2]
[335364293,1724161840519,-2740.0,0.00011,2]
[335364295,1724161840530,-701.66503495,0.00011,2]
[335364297,1724161840541,-1209.49724686,0.00011,2]
[335364538,1724161843004,-895.88804481,0.00011,2]
[335364542,1724161843015,-823.52658831,0.00011,2]
[335364551,1724161843064,-422.99161213,0.00011,2]
[335364553,1724161843075,-21970.92934062,0.00011,2]
[335364559,1724161843122,-353.287,0.00011,2]
[335364616,1724161843616,-1218.83528,0.00011,2]
[335364619,1724161843632,-30025.29721512,0.00011,2]
[335364861,1724161845956,-264.06840755,0.00011,2]
[335364864,1724161845967,-658.275,0.00011,2]
[335364888,1724161846185,-653.75012531,0.00011,2]
[335364890,1724161846196,-448.10358374,0.00011,2]
[335366323,1724161992999,150.5,0.000178,120]
[335366324,1724161993275,150.5,0.000178,120]
[335366326,1724161993526,155.77,0.0001779,120]
[335366327,1724161993748,150.5,0.0001779,120]
[335366328,1724162075128,281.33,8.614e-05,2]
[335366370,1724162536061,267.26,8.219e-05,2]
[335366372,1724162695636,163.9629961,9.899e-05,2]
[335366375,1724162810380,155.3685479,9.899e-05,2]
[335366379,1724162874777,156.01469741,9.899e-05,2]
[335366412,1724163032087,-250.73,9.946e-05,2]
[335366413,1724163032097,-872.0,0.00010009,2]
[335366414,1724163032106,-187.42,0.00010131,2]
[335366415,1724163032116,-170.48,0.00010314,2]
[335366416,1724163032125,-267.26,0.00010479,2]
[335366417,1724163032135,-872.3,0.00010541,2]
[335366418,1724163032144,-522.62990097,0.00010699,2]
[335366419,1724163032153,-160.0,0.00010728,2]
[335366420,1724163032163,-200.0,0.000108,3]
[335366421,1724163032173,-236.11042651,0.00010861,2]
[335366422,1724163032183,-198.71911222,0.00010861,2]
[335366423,1724163032192,-158.47,0.00010862,2]
[335366424,1724163032202,-499.99,0.00010862,2]
[335366425,1724163032211,-166.64271135,0.00010862,2]
[335366426,1724163032221,-295.03427055,0.00010862,2]
[335366427,1724163032230,-155.56711237,0.00010862,2]
[335366428,1724163032240,-155.0,0.00010862,2]
[335366429,1724163032259,-204.04227367,0.00010862,2]
[335366430,1724163032268,-200.9488754,0.00010862,2]
[335366431,1724163032278,-155.65560608,0.00010862,2]
[335366432,1724163032287,-159.57347377,0.00010862,2]
[335366433,1724163032297,-222.32373504,0.00010888,2]
[335366434,1724163032306,-434.34731075,0.00010888,2]
[335366435,1724163032316,-155.04549642,0.00010888,2]
[335366436,1724163032325,-156.43953216,0.00010888,2]
[335366437,1724163032334,-197.23224072,0.00010888,2]
[335366438,1724163032343,-200.79071891,0.00010888,2]
[335366439,1724163032353,-432.43627128,0.00010888,2]
[335366440,1724163032362,-159.19877148,0.00010888,2]
[335366441,1724163032371,-357.41882144,0.00010888,2]
[335366442,1724163032380,-156.13939617,0.00010888,2]
[335366443,1724163032389,-159.74985319,0.00010888,2]
[335366444,1724163032398,-202.96935164,0.00010888,2]
[335366445,1724163032407,-860.27502339,0.0001089,2]
[335366446,1724163032415,-155.42903524,0.0001089,2]
[335366447,1724163032425,-162.99738207,0.0001089,2]
[335366449,1724163032434,-155.67396441,0.0001089,2]
[335366451,1724163032444,-157.3535465,0.0001089,2]
[335366453,1724163032454,-212.20182364,0.0001089,2]
[335366455,1724163032463,-486.00148324,0.0001089,2]
[335366457,1724163032472,-182.15567349,0.0001089,2]
[335366458,1724163032481,-303.84050127,0.0001089,2]
[335366460,1724163032493,-255.13733329,0.0001089,2]
[335366462,1724163032502,-159.48043579,0.0001089,2]
[335366464,1724163032511,-199.18476235,0.0001089,2]
[335366466,1724163032520,-179.71785152,0.0001089,2]
[335366468,1724163032530,-155.1137372,0.0001089,2]
[335366470,1724163032539,-155.19086348,0.0001089,2]
[335366472,1724163032548,-179.51849561,0.0001089,2]
[335366474,1724163032558,-155.26051792,0.0001089,2]
[335366476,1724163032567,-309.92357775,0.0001089,2]
[335366478,1724163032576,-522.37659135,0.00010897,2]
[335366480,1724163032586,-6535.68093807,0.00010898,2]
[335366482,1724163032595,-1060.74321111,0.00010898,2]
[335366483,1724163032604,-150.0,0.00010898,2]
[335366485,1724163032613,-522.37659136,0.00010899,2]
[335366487,1724163032622,-10000.0,0.00010899,2]
[335366489,1724163032631,-150.99,0.00010899,2]
[335366491,1724163032640,-33.80933309,0.00010899,2]
[335366493,1724163032652,-1506.92253109,0.00010899,2]
[335366495,1724163032663,-6960.39264042,0.00010899,2]
[335366497,1724163032671,-164.44192191,0.00010899,2]
[335366499,1724163032680,-169.91283276,0.00010899,2]
[335366501,1724163032690,-155.0,0.00010899,2]
[335366502,1724163032699,-298.77636906,0.00010899,2]
[335366504,1724163032708,-528.80773361,0.00010899,2]
[335366506,1724163032717,-3819.4123,0.000109,2]
[335366508,1724163032727,-164.74306907,0.000109,2]
[335366509,1724163032736,-2665.3037,0.000109,2]
[335366510,1724163032748,-11890.1212,0.000109,2]
[335366511,1724163032758,-152.80631539,0.000109,2]
[335366512,1724163032768,-500.0,0.000109,3]
[335366513,1724163032778,-304.56425798,0.000109,2]
[335366514,1724163032787,-163.67346565,0.000109,2]
[335366515,1724163032797,-298.77636906,0.00010949,2]
[335366516,1724163032807,-155.0,0.00010949,2]
[335366517,1724163032816,-155.08636607,0.00010949,2]
[335366518,1724163032826,-204.54756449,0.00010949,2]
[335366519,1724163032839,-853.42,0.00010957,2]
[335366520,1724163032848,-500.0,0.00010968,2]
[335366521,1724163032857,-500.0,0.00010968,2]
[335366522,1724163032867,-155.21195308,0.00010979,2]
[335366523,1724163032877,-20919.22271847,0.00010997,2]
[335366524,1724163032887,-1000.0,0.00010999,2]
[335366525,1724163032896,-1000.0,0.00010999,2]
[335366526,1724163032907,-203.75933012,0.00010999,2]
[335366527,1724163032916,-500.0,0.00010999,2]
[335366528,1724163032925,-500.0,0.00010999,2]
[335366529,1724163032934,-500.0,0.00010999,2]
[335366530,1724163032943,-500.0,0.00010999,2]
[335366531,1724163032952,-500.0,0.00010999,2]
[335366532,1724163032962,-500.0,0.00010999,2]
[335366533,1724163032972,-500.0,0.00010999,2]
[335366534,1724163032981,-500.0,0.00010999,2]
[335366535,1724163032992,-648.36250497,0.00010999,2]
[335366536,1724163033003,-500.0,0.00010999,2]
[335366537,1724163033012,-500.0,0.00010999,2]
[335366538,1724163033022,-500.0,0.00010999,2]
[335366539,1724163033031,-500.0,0.00010999,2]
[335366540,1724163033040,-551.13049724,0.00010999,2]
[335366541,1724163033050,-230.21188185,0.00010999,2]
[335366542,1724163033060,-500.0,0.00010999,2]
[335366543,1724163033070,-500.0,0.00010999,2]
[335366544,1724163033080,-500.0,0.00010999,2]
[335366545,1724163033090,-500.0,0.00010999,2]
[335366546,1724163033100,-500.0,0.00010999,2]
[335366547,1724163033110,-500.0,0.00010999,2]
[335366548,1724163033120,-500.0,0.00010999,2]
[335366549,1724163033130,-500.0,0.00010999,2]
[335366550,1724163033140,-500.0,0.00010999,2]
[335366551,1724163033150,-500.0,0.00010999,2]
[335366552,1724163033160,-500.0,0.00010999,2]
[335366553,1724163033169,-500.0,0.00010999,2]
[335366554,1724163033179,-500.0,0.00010999,2]
[335366555,1724163033188,-500.0,0.00010999,2]
[335366556,1724163033198,-500.0,0.00010999,2]
[335366557,1724163033207,-500.0,0.00010999,2]
[335366558,1724163033216,-500.0,0.00010999,2]
[335366559,1724163033226,-500.0,0.00010999,2]
[335366560,1724163033235,-500.0,0.00010999,2]
[335366561,1724163033247,-500.0,0.00010999,2]
[335366562,1724163033256,-586.54,0.00010999,2]
[335366563,1724163033265,-13029.06400049,0.00011,2]
[335366564,1724163033277,-85627.43529804,0.00011,2]
[335366565,1724163033292,-3094.63215291,0.00011,2]
[335366566,1724163033303,-3603.53690901,0.00011,2]
[335366567,1724163033315,-556.67574888,0.00011,2]
[335366568,1724163033325,-170333.42546068,0.00011,2]
[335366569,1724163033337,-28419.95610758,0.00011,2]
[335366570,1724163033348,-2763.18092288,0.00011,2]
[335366571,1724163033359,-2219.57379425,0.00011,2]
[335366572,1724163033369,-279.92831739,0.00011,2]
[335366579,1724163038185,-1297.9617252,0.00010852,2]
[335366580,1724163038194,-155.0,0.00010888,2]
[335366581,1724163038203,-3224.86713505,0.00011,2]
[335366582,1724163038214,-941.43031319,0.00011,2]
[335366583,1724163038225,-853.08727691,0.00011,2]
[335366584,1724163038318,-2953.00495902,0.00011,2]
[335366734,1724163040485,-1215.5065064,0.00011,2]
[335366986,1724163043225,-2133.81,0.00011,2]
[335366994,1724163043297,-5005.23926837,0.00011,2]
[335367067,1724163043999,-267.54232,0.00011,2]
[335367278,1724163046163,-240.53,9.936e-05,2]
[335367280,1724163046173,-26.89272386,0.00011,2]
[335367288,1724163046240,-1042.0,0.00011,2]
[335367310,1724163046451,-669.58337309,0.00011,2]
[335367312,1724163046462,-946.21399857,0.00011,2]
[335368269,1724164136271,252.98,8.219e-05,2]
[335368276,1724164205765,187.42,9.878e-05,2]
[335368295,1724164232430,-2429.18,9.91e-05,2]
[335368296,1724164232439,-155.0,9.943e-05,2]
[335368297,1724164232449,-155.59743999,0.00010009,2]
[335368298,1724164232459,-272.06,0.00010097,2]
[335368299,1724164232651,-171.52,0.00010186,2]
[335368300,1724164232662,-426.1029,0.00010465,2]
[335368301,1724164232672,-316.80001562,0.00010471,2]
[335368302,1724164232681,-252.98,0.00010473,2]
[335368303,1724164232690,-522.85661593,0.00010505,2]
[335368304,1724164232700,-300.0,0.00010599,2]
[335368305,1724164232709,-150.0,0.000106,2]
[335368306,1724164232721,-426.75,0.000106,2]
[335368307,1724164232731,-426.75,0.000106,2]
[335368308,1724164232740,-1428.0,0.000106,2]
[335368310,1724164232750,-426.75,0.000106,2]
[335368312,1724164232759,-426.75,0.000107,2]
[335368314,1724164232769,-150.0,0.000107,2]
[335368316,1724164232778,-426.75,0.000107,2]
[335368318,1724164232787,-150.0,0.000107,2]
[335368320,1724164232797,-1000.0,0.000107,2]
[335368322,1724164232807,-499.99,0.000107,2]
[335368324,1724164232816,-1000.0,0.000107,2]
[335368326,1724164232825,-868.40617802,0.00010713,2]
[335368328,1724164232835,-1739.40578979,0.00010713,2]
[335368330,1724164232844,-156.966318,0.00010799,2]
[335368332,1724164232854,-200.0,0.000108,3]
[335368334,1724164232863,-440.88857809,0.00010862,2]
[335368336,1724164232873,-186.43470574,0.00010862,2]
[335368338,1724164232882,-205.57759256,0.00010862,2]
[335368340,1724164232892,-150.0,0.00010879,2]
[335368342,1724164232901,-7081.50066435,0.0001088,2]
[335368344,1724164232910,-1983.18019894,0.00010887,2]
[335368346,1724164232920,-330.4044326,0.00010888,2]
[335368348,1724164232930,-155.21641346,0.00010888,2]
[335368350,1724164232939,-155.19385311,0.00010888,2]
[335368352,1724164232949,-1910.03696891,0.0001089,2]
[335368354,1724164232958,-277.67205099,0.0001089,2]
[335368356,1724164232969,-5882.11284426,0.00010898,2]
[335368358,1724164232978,-164.34661823,0.00010899,2]
[335368360,1724164232988,-3110.4897,0.000109,2]
[335368362,1724164232997,-835.2933,0.000109,2]
[335368364,1724164233006,-320.7457,0.000109,2]
[335368366,1724164233016,-500.0,0.000109,3]
[335368368,1724164233026,-572.00072157,0.000109,2]
[335368370,1724164233036,-10121.4407806,0.000109,2]
[335368371,1724164233046,-1036.0,0.000109,2]
[335368374,1724164233056,-155.0,0.00010949,2]
[335368376,1724164233066,-3081.23388496,0.00010958,2]